Cogmind - Beta 16.1 @@@ ROGUE MODE // 2026.05.01 @ 21:39:21 Player: f3-rnm Result: Destroyed by 59-XBU(R) with Subdweller Beam Cannon Performance ------------- Evolutions (0) 0 Regions Visited (2) 400 Robots Destroyed (8) 40 Value Destroyed (213) 213 Prototype IDs (0) 0 Alien Tech Used (0) 0 Bonus (0) 0 TOTAL SCORE: 653 Bonus ------- None Cogmind --------- Core Integrity 0/250 Matter 231/300 Energy 140/250 System Corruption 0% Temperature Cool (9) Movement Treading (240) Ox1 Location -10/Subcaves Parts ------- > --- POWER (1) -------- Ion Engine > --- PROPULSION (2) --- Light Treads > --- UTILITY (2) ------ Heat Sink Large Storage Unit > --- WEAPON (2) ------- Assault Rifle Light Assault Rifle > --- INVENTORY (15) --- Ion Engine Light Ion Engine Aluminum Leg Wheel Wheel Heat Sink Small Storage Unit Huge Storage Unit Small Laser Grenade Launcher Makeshift Spear Peak State ------------ > --- POWER ------------ Ion Engine > --- PROPULSION ------- Light Treads Light Treads > --- UTILITY ---------- Heat Sink Large Storage Unit > --- WEAPON ----------- Assault Rifle Light Assault Rifle > --- INVENTORY -------- Ion Engine Light Ion Engine Aluminum Leg Wheel Wheel Heat Sink Small Storage Unit Huge Storage Unit Small Laser Grenade Launcher Makeshift Spear [Rating: 8] Favorites ----------- Power Ion Engine Engine Ion Engine Propulsion Light Treads Treads Light Treads Utility Heat Sink Device Heat Sink Storage Large Storage Unit Weapon Small Laser Energy Gun Small Laser Ballistic Gun Assault Rifle Launcher Grenade Launcher Build | -11 -10 -10 ------- Run | Yrd Mat Sub Slots Evolved . | . . . Power . | . . . Propulsion . | . . . Utility . | . . . Weapon . | . . . Parts Attached 10 | 5 2 3 Power 1 | . . 1 Engine 1 | . . 1 Core . | . . . Reactor . | . . . Propulsion 2 | 2 . . Treads 2 | 2 . . Leg . | . . . Wheel . | . . . Hover . | . . . Flight . | . . . Utility 3 | 1 2 . Device 1 | . 1 . Storage 2 | 1 1 . Processor . | . . . Hackware . | . . . Protection . | . . . Artifact . | . . . Weapon 4 | 2 . 2 Energy Gun 1 | 1 . . Energy Cannon . | . . . Ballistic Gun 2 | 1 . 1 Ballistic Cannon . | . . . Launcher 1 | . . 1 Special Weapon . | . . . Impact Weapon . | . . . Slashing Weapon . | . . . Piercing Weapon . | . . . Special Melee Weapon . | . . . Unidentified Prototypes . | . . . Parts Lost 2 | . . 2 Power . | . . . Propulsion 1 | . . 1 Utility . | . . . Weapon 1 | . . 1 Highest Loss Streak 2 | . . 2 To Critical Strikes . | . . . Average Backups 8 | 1 6 12 Power 2 | . 2 2 Propulsion 2 | 1 2 3 Utility 1 | . . 3 Weapon 1 | . . 3 Tool/Special . | . . . Unused Backups 6 | . . 6 Power 2 | . . 2 Propulsion 2 | . . 2 Utility 1 | . . 1 Weapon 1 | . . 1 Tool/Special . | . . . Average Slot Usage (%) 81 | . 79 85 Treads 27 | . 28 27 Device 10 | . 8 14 Storage 14 | . 14 14 Energy Gun 13 | . 14 13 Ballistic Gun 10 | . 14 6 Launcher 3 | . . 8 Peak Build Rating 8 | 5 7 8 Average Rating 6 | 3 5 7 On Entrance 4 | . 5 7 Avg Prop Armor Cover (%) . | . . . Naked Turns . | . . . Heaviest Build 25 | 8 24 25 Greatest Support 40 | 40 40 40 Greatest Overweight (x) . | . . . Average Overweight (x) . | . . . Largest Inventory Capacity 15 | 8 15 15 Average Capacity 12 | 6 11 15 Most Carried 13 | 4 12 13 Average Carried 8 | 1 6 12 Final Capacity 15 | 8 15 15 Final Carried 12 | 4 12 11 Class Distribution -------------------- 100% | Mutant Dominant Class ---------------- Mutant | -10/Materials Mutant | -10/Subcaves Resources | -11 -10 -10 ----------- Run | Yrd Mat Sub Matter Collected 342 | 233 103 6 Remotely . | . . . Salvage Created 222 | . 202 20 Parts 13 | . 8 5 Haulers Intercepted . | . . . Recyclers Shooed . | . . . Parts Field Recycled . | . . . Retrieved Matter . | . . . Parts Self-Destructed 3 | . . 3 Prevented . | . . . Parts Restored . | . . . Kills | -11 -10 -10 ------- Run | Yrd Mat Sub Combat Hostiles Destroyed 8 | . 5 3 Guns 5 | . 5 . AOE 3 | . . 3 Classes Destroyed 2 | . 1 1 Swarmer 3 | . . 3 Grunt 5 | . 5 . Best Kill Streak 3 | . 2 3 Combat Bots Only 3 | . 2 3 Max Kills in Single Turn 2 | . 1 2 Gunslinging . | . . . Exploded 2 | . . 2 Melee . | . . . Uniques/NPCs Destroyed . | . . . Combat | -11 -10 -10 -------- Run | Yrd Mat Sub Hostile Shots Fired 56 | . 28 28 Missed 13 | . 6 7 Hits 43 | . 22 21 Projectile 43 | . 22 21 Damage Taken 713 | . 250 463 Core 271 | . 78 193 Absorbed by Shields . | . . . Core Remaining (%) 100 | 100 . . Volleys Fired 31 | . 22 9 Largest 2 | . 2 2 Hottest 60 | . 60 60 Shots Fired 59 | . 43 16 Gun 57 | . 43 14 Cannon . | . . . Launcher 2 | . . 2 Special . | . . . Kinetic 33 | . 22 11 Thermal 24 | . 21 3 Explosive 2 | . . 2 Electromagnetic . | . . . Robot Hit Streak 11 | . 9 11 Robot Miss Streak 2 | . 2 1 Penetration Max . | . . . Secondary Targets 1 | . 1 . Max Gunslinging Chain 1 | . 1 . Shots Hit Robots 46 | . 33 13 Core Hits 16 | . 11 5 Critical Kills . | . . . Critical Parts Destroyed . | . . . Critical Strikes . | . . . Melee Attacks . | . . . Impact . | . . . Slashing . | . . . Piercing . | . . . Sneak Attacks . | . . . Combat Hostiles . | . . . Follow-up Attacks . | . . . Damage Inflicted 600 | . 387 213 Guns 516 | . 387 129 Cannons . | . . . Explosions 84 | . . 84 Melee . | . . . Ramming . | . . . Kinetic 311 | . 203 108 Thermal 205 | . 184 21 Explosive 84 | . . 84 Electromagnetic . | . . . Impact . | . . . Slashing . | . . . Piercing . | . . . Highest Corruption . | . . . Average Corruption . | . . . Corruption Purged . | . . . Corruption Blocked . | . . . Overload Shots . | . . . Overflow Damage . | . . . Projectiles . | . . . Explosions . | . . . Melee . | . . . Knockbacks . | . . . Impact . | . . . Kinetic . | . . . Secondary . | . . . Self-Inflicted Damage . | . . . Shots . | . . . Rammed . | . . . Targets Rammed . | . . . Kicked . | . . . Crushed . | . . . Highest Temperature 4 | . 4 . Average Temperature 1 | . 1 . Received Heat Transfer 273 | . 141 132 Siege Activations . | . . . Martial Activations . | . . . Shielding Activations . | . . . Robots Disrupted . | . . . Combat Hostiles . | . . . Robots Corrupted . | . . . Combat Hostiles . | . . . Parts Fried . | . . . Impact Corruptions . | . . . Robots Melted . | . . . Combat Hostiles . | . . . Parts Melted . | . . . Heat Transferred 475 | . 425 50 Parts Sabotaged . | . . . Parts Stolen . | . . . Parts Stripped . | . . . Power Chain Reactions . | . . . Alert | -11 -10 -10 ------- Run | Yrd Mat Sub Maximum Alert Level . | . . . Low Security (%) 100 | 100 100 . Level 1 . | . . . Level 2 . | . . . Level 3 . | . . . Level 4 . | . . . Level 5 . | . . . High Security . | . . . Max Security . | . . . Peak Influence 75 | . 75 . Initial . | . . . Average 19 | . 22 . Influence Increases 216 | . 146 70 Destroy 0b10 Robot/C 160 | . 100 60 Destroy Leader 40 | . 30 10 Destroy Structure 1 | . 1 . Lose Combat Pursuer 15 | . 15 . Influence Decreases 216 | . 129 87 Entered New Map 9 | . . 9 Time Decay 207 | . 129 78 Squads Dispatched 2 | . 2 . Investigation 2 | . 2 . Extermination . | . . . Reinforcement . | . . . Assault . | . . . Garrison . | . . . Intercept . | . . . Searches Triggered . | . . . Construction Impeded . | . . . Haulers Reinforced . | . . . Active Scanning Responses . | . . . Cargo Convoy Interrupts . | . . . Stealth | -11 -10 -10 --------- Run | Yrd Mat Sub Distress Signals . | . . . Communications Jammed . | . . . Distress Signals . | . . . Times Spotted 12 | . 7 5 Peak Tracking Total 3 | . 2 3 Tactical Retreats 1 | . 1 . Traps | -11 -10 -10 ------- Run | Yrd Mat Sub Traps Triggered 2 | . 2 . Indirectly . | . . . Trap Hack Attempts . | . . . Triggered . | . . . Disarmed . | . . . Reprogrammed . | . . . Reused . | . . . Traps Extracted . | . . . Installed . | . . . Triggered . | . . . Machines | -11 -10 -10 ---------- Run | Yrd Mat Sub Machines Disabled . | . . . Max in Single Turn . | . . . Machines Repaired . | . . . Machines Dismantled . | . . . Machines Sabotaged . | . . . Overloaded Fab Kills . | . . . Hacking | -11 -10 -10 --------- Run | Yrd Mat Sub Machines Accessed . | . . . Terminals . | . . . Fabricators . | . . . Repair Stations . | . . . Recycling Units . | . . . Scanalyzers . | . . . Garrison Access . | . . . Total Hacks . | . . . Successful . | . . . Failed . | . . . Catastrophic . | . . . Database Lockouts . | . . . Manual . | . . . Terminals . | . . . Fabricators . | . . . Repair Stations . | . . . Recycling Units . | . . . Scanalyzers . | . . . Garrison Access . | . . . Terminal Hacks . | . . . Fabricator Hacks . | . . . Repair Station Hacks . | . . . Recycling Unit Hacks . | . . . Scanalyzer . | . . . Garrison Access Hacks . | . . . Unauthorized Hacks . | . . . Terminals . | . . . Fabricators . | . . . Repair Stations . | . . . Recycling Units . | . . . Scanalyzers . | . . . Garrison Access . | . . . Data Cores Recovered . | . . . Used . | . . . Hacking Detections . | . . . Full Trace Events . | . . . Feedback Events . | . . . Feedback Blocked . | . . . Robot Schematics Acquired . | . . . Robots Built . | . . . Authchips . | . . . Time . | . . . Total Robot Build Rating . | . . . Part Schematics Acquired . | . . . Parts Built . | . . . Authchips . | . . . Time . | . . . Total Part Build Rating . | . . . Part Studies Acquired . | . . . Parts Repaired . | . . . Time . | . . . Parts Recycled . | . . . Recycled Matter . | . . . Retrieved Matter . | . . . Retrieved Components . | . . . Parts Scanalyzed . | . . . Part Schematics Acquired . | . . . Parts Damaged . | . . . Bothacking | -11 -10 -10 ------------ Run | Yrd Mat Sub Used RIF Installer . | . . . Robots Hacked . | . . . Non-combat . | . . . Combat . | . . . Robot Hacks Applied . | . . . Relay Couplers Released . | . . . Fabnet Peak Effective % . | . . . Robots Rewired . | . . . Allies Hacked . | . . . Hacks Repelled . | . . . Allies | -11 -10 -10 -------- Run | Yrd Mat Sub Total Allies . | . . . Largest Group . | . . . Highest-Rated Group . | . . . Highest-Rated Ally . | . . . Total Orders . | . . . Ally Attacks . | . . . Total Damage . | . . . Kills . | . . . Allies Corrupted . | . . . Allies Melted . | . . . Intel | -11 -10 -10 ------- Run | Yrd Mat Sub Active Infowar (turns) . | . . . Robot Analysis Total . | . . . Derelict Logs Recovered 1 | . . 1 Drone Launches . | . . . Drone Recoveries . | . . . Exploration | -11 -10 -10 ------------- Run | Yrd Mat Sub Turns Passed 919 | 86 447 386 Spaces Moved 506 | 52 233 221 Core 7 | 7 . . Treads 499 | 45 233 221 Legs . | . . . Wheels . | . . . Hover . | . . . Flight . | . . . Fastest Speed 50 | 50 160 160 Average Speed 158 | 145 160 160 Slowest Speed 160 | 160 160 160 Overloaded Moves . | . . . Propulsion Burnouts . | . . . Robots Hopped . | . . . Potential Cave-ins . | . . . Cave-ins Triggered . | . . . Exploration Rate (%) 22 | 3 49 16 Regions Visited 2 Branch Regions 1 Pre-discovered Areas 1 | . . 1 Known Exits Taken . | . . . Unknown Exits Taken 2 | 1 1 . Scrap Searched . | . . . Spaces Dug . | . . . Terrain Destroyed 14 | . . 14 Melee . | . . . Projectile . | . . . AOE 14 | . . 14 Terrain Rammed . | . . . Walls Destroyed . | . . . Machines Disabled . | . . . Actions | -11 -10 -10 --------- Run | Yrd Mat Sub Total 562 | 60 264 238 Wait 3 | . . 3 Move 504 | 51 232 221 Hop . | . . . Pick Up 13 | 4 8 1 Fast Attach 5 | 5 . . Attach 3 | . 1 2 Detach . | . . . Swap 3 | . 1 2 Drop . | . . . Fire 31 | . 22 9 Melee . | . . . Ram . | . . . Kick . | . . . Crush . | . . . Escape Stasis . | . . . Rewire . | . . . Trap . | . . . Miscellaneous . | . . . Route ------- -11/Scrapyard -10/Materials (discovered 3 exits: [*Mat] / [*Min] / [*Sub]) -10/Subcaves History --------- Turn | Location | Event 4 | -11/Scrapyard | Discovered new exit (range 16) 87 | -11/Scrapyard | Entered Materials 304 | -10/Materials | Discovered new exit (range 15) 305 | -10/Materials | Build established: Mutant 475 | -10/Materials | Discovered new exit (range 16) 529 | -10/Materials | Discovered new exit (range 4) 534 | -10/Materials | Entered Subcaves 557 | -10/Subcaves | Learned location of Storage (-7) 678 | -10/Subcaves | A swath of the cavern ceiling suddenly collapsed 868 | -10/Subcaves | Ambushed by Subdwellers from Twisted Machinery 905 | -10/Subcaves | Core integrity fell below 50% 914 | -10/Subcaves | Core integrity fell below 20% 920 | -10/Subcaves | Destroyed by 59-XBU(R) with Subdweller Beam Cannon Last Messages --------------- 00532_ T-07 Excavator is excavating. LOCATION=UNKNOWN AMBIENT_HEAT=-10 GOAL=ESCAPE 00557_ Acquired derelict log, extracted data. World map updated: -7/Storage. 00651_ S-10 Pest destroyed. 00654_ Subatomizers dissect the Lgt. Ion Engine. 00658_ Flight Unit fries itself beyond repair. 00659_ The unstable cave ceiling collapses. 00660_ Lgt. Ion Engine fries itself beyond repair. 00678_ 5 Matter crushed. A swath of the cavern ceiling suddenly collapses. 00774_ Acquired Mak. Spear. 00811_ Acquired 6 matter. 00853_ Subatomizers dissect the Sub. Monowheel. 00868_ GP-VD3(R) emerges from the Twisted Machinery. 00880_ Subatomizers dissect the Sub. Monowheel. 00907_ Sml. Laser destroyed. 00913_ Lgt. Treads destroyed. Map ----- +----------------------------------------------------+ | ?????????????????????????????????????????????????? | | ?????????????????????????????????????????????????? | | ?????????????????????????????????????????????????? | | ?????????????????????????????????????????????????? | | ?????????????????????????????????????????????????? | | ?????????????????????????????????????????????????? | | ?????????????????????????????????????????????????? | | ???????????????????????????????????????? ????????? | | ?????????????????????##???????????????? #????????? | | ?????????????????????# #?????????????? #?????????? | | ?????????????????????# ###?????????? #?????????? | | ????????????????????## ####?????? #?????????? | | ????????????????????# ##?### ???????????? | | ?????????????????#### ## ?????????????? | | ????????????????## ???????????????? | | ????????????????# #????????????????? | | ????????????????# ##???????????????? | | ?????????????????# ??### ####????????????? | | ?????????????????# #### ##???????????? | | ???????????????### ##??????????? | | ????????????# !%! #??????????? | | ????????# = ## #### ##?????????? | | ????????# ###?####### #?????????? | | ???????? ??#####;; R ##????????? | | ?????????"" ###???#; R ##???????? | | ??????????#"?????????# @ #???????? | | ?????????????????????# ## ### #???????? | | ?????????????????????######## ##?? #???????? | | ????????????????????????????## #???#???????? | | ?????????????????????????????### ##???????????? | | ???????????????????????????????## #????????????? | | ????????????????????????????????## ##???????????? | | ?????????????????????????????????# #???????????? | | ?????????????????????????????????# #???????????? | | ???????????????????????????????### ##???????????? | | ??????????????????????#????????# #????????????? | | ??????????????????????? ??????# ##???????????? | | ??????????????????????## ??????## #???????????? | | ??????????????????????# ??????## ##???????????? | | ??????????????????###?## ##???## #????????????? | | ???????????????? " # ???# ##????????????? | | ????????????????? ??## ##?????????????? | | ????????????????????# ### ##????????????? | | ?????????????????????????# ##???????????? | | ?????????????????????????## % ##??????????? | | ??????????????????????????## % ##?????????? | | ???????????????????????????## #?????????? | | ????????????????????????????# #?????????? | | ????????????????????????????# %% ##?????????? | | ????????????????????????????# ##??????????? | +----------------------------------------------------+ Best States ------------- Heat Dissipation 35 Energy Generation 10 Energy Capacity 250 Matter Stores 300 Matter Capacity 300 Sight Range 16 Terrain Scan Density 10 Evasion (%) 40 Recoil Reduction 2 Item Schematics ----------------- None Robot Schematics ------------------ None Fabricated ------------ Nothing Repaired ---------- Nothing Studied --------- None Alien Tech Used ----------------- None Achievements -------------- None Challenges ------------ None Game ------ Seed LongswordScrapoidWheel Manual? 0 Play Time 00:04:15 Cumulative 488.5 hours Start 2026.05.01 @ 21:36:12 End 2026.05.01 @ 21:39:21 Sessions 1 Manual Loads 0 Difficulty Rogue Special Mode None Game No. 414 Rogue 378 Adventurer 36 Explorer 0 Win Type - Total 21 Types 9/0/11/0/0/0/1/0/0/0 Lore% 73 Gallery% 84 Achievement% 70 Wizard Run 0 Options --------- Layout 0 ASCII 0 Keyboard 0 Movement Mouse Keybinds 0 Fullscreen 1 Font 18/SmallcapsGlow Map View 76x50 Zoom Use 0% Tactical HUD 1 Map Filters NONE Filters NONE Steam 1 RUN: d4120ae7-c867-43ac-a0b7-fd86d898804c